Cogmind - Beta 10.2 @@@ ROGUE MODE // 2020.11.22 @ 20:47:12 // Halloween2020/ForbiddenLore Player: Runia Result: Destroyed by Y-54 Guardian with Gatling Laser Performance ------------- Evolutions (4) 2000 Regions Visited (12) 2400 Robots Destroyed (51) 255 Value Destroyed (2205) 2205 Prototype IDs (3) 60 Alien Tech Used (0) 0 Bonus (2512) 2512 TOTAL SCORE: 9432 Bonus ------- High Alert Combat Kills 412 Entered Garrisons 600 Used RIF Installer 1500 Cogmind --------- Core Integrity 0/850 Matter 97/300 Energy 100/100 System Corruption 2% Temperature Cool (6) Movement Core (1200) Ox23 Location -6/Factory Parts ------- > --- POWER (1) -------- (None) > --- PROPULSION (4) --- (None) > --- UTILITY (8) ------ Medium Storage Unit Medium Storage Unit Medium Storage Unit Medium Storage Unit High-capacity Storage Unit Relay Coupler [NC] (25) Relay Coupler [Sentry] (20) > --- WEAPON (2) ------- Falx Falx > --- INVENTORY (28) --- Reinforced Deuterium Engine Micro Nuclear Core Fission Core Medium Storage Unit Advanced Sensor Array Improved Salvage Targeting Computer Utility Shielding Hacking Suite Relay Coupler [NC] (29) Relay Coupler [NC] (29) Relay Coupler [Brawler] (26) Relay Coupler [Duelist] (28) Relay Coupler [Sentry] (22) Thief Drone Bay (3/3) Mini Grenade Launcher Mini Grenade Launcher Peak State ------------ > --- POWER ------------ Fission Core > --- PROPULSION ------- Light Treads Light Treads Flexi-carbon Leg > --- UTILITY ---------- Medium Storage Unit Medium Storage Unit Medium Storage Unit Medium Storage Unit High-capacity Storage Unit Transmission Jammer Phase Shifter Improved Utility Shielding > --- WEAPON ----------- Pulse Rifle Force Rifle > --- INVENTORY -------- Micro Nuclear Core Fission Core Medium Storage Unit Advanced Sensor Array Utility Shielding Utility Shielding Hacking Suite Relay Coupler [NC] Relay Coupler [NC] Relay Coupler [NC] Relay Coupler [Brawler] Relay Coupler [Duelist] Relay Coupler [Sentry] Relay Coupler [Sentry] Thief Drone Bay Beam Rifle Heavy Assault Rifle Gauss Rifle Mini Grenade Launcher Mini Grenade Launcher Great Maul Great Axe Great Axe [Rating: 42] Favorites ----------- Power Fission Core Engine Light Ion Engine Power Core Fission Core Propulsion Light Treads Treads Light Treads Leg Flexi-carbon Leg Wheel Compact Wheel Utility Medium Storage Unit Device Transmission Jammer Storage Medium Storage Unit Hackware Relay Coupler [NC] Protection Utility Shielding Weapon Heavy Assault Rifle Energy Gun Medium Laser Ballistic Gun Heavy Assault Rifle Launcher Mini Grenade Launcher Impact Weapon Great Maul Slashing Weapon Great Axe Build | -11 -10 -10 -10 -9 -8 -8 -8 -8 -8 -6 -6 -6 ------- Run | Scr Mat Min Exi Min Mat Gar Sto Gar Rec Fac Gar Fac Slots Evolved 8 | . . . . . 4 . . . . 4 . . Power . | . . . . . . . . . . . . . Propulsion 2 | . . . . . 2 . . . . . . . Utility 6 | . . . . . 2 . . . . 4 . . Weapon . | . . . . . . . . . . . . . Parts Attached 86 | 2 2 8 2 . 15 11 15 1 1 9 16 4 Power 4 | . . . . . 2 . . . . 1 1 . Engine . | . . . . . . . . . . . . . Core 4 | . . . . . 2 . . . . 1 1 . Reactor . | . . . . . . . . . . . . . Propulsion 19 | 2 . . . . 3 5 8 . . . 1 . Treads 11 | 1 . . . . 1 2 7 . . . . . Leg 1 | . . . . . . . . . . . 1 . Wheel 7 | 1 . . . . 2 3 1 . . . . . Hover . | . . . . . . . . . . . . . Flight . | . . . . . . . . . . . . . Utility 21 | . 2 2 2 . 5 1 . . . 5 2 2 Device 9 | . 1 2 . . 3 . . . . 2 1 . Storage 7 | . . . 2 . 2 1 . . . 2 . . Processor . | . . . . . . . . . . . . . Hackware 2 | . . . . . . . . . . . . 2 Protection 3 | . 1 . . . . . . . . 1 1 . Artifact . | . . . . . . . . . . . . . Weapon 42 | . . 6 . . 5 5 7 1 1 3 12 2 Energy Gun 15 | . . 3 . . 3 1 2 1 . 2 3 . Energy Cannon . | . . . . . . . . . . . . . Ballistic Gun 11 | . . 1 . . 1 . 3 . . . 6 . Ballistic Cannon . | . . . . . . . . . . . . . Launcher 8 | . . 2 . . . 2 . . 1 . 3 . Special Weapon . | . . . . . . . . . . . . . Impact Weapon 5 | . . . . . 1 2 2 . . . . . Slashing Weapon 3 | . . . . . . . . . . 1 . 2 Piercing Weapon . | . . . . . . . . . . . . . Special Melee Weapon . | . . . . . . . . . . . . . Unidentified Prototypes 1 | . . 1 . . . . . . . . . . Parts Lost 25 | . . . . . 2 1 5 . . 3 10 4 Power 1 | . . . . . . . . . . . . 1 Propulsion 11 | . . . . . 1 1 4 . . 2 3 . Utility 4 | . . . . . . . . . . . 3 1 Weapon 9 | . . . . . 1 . 1 . . 1 4 2 Highest Loss Streak 8 | . . . . . 2 1 2 . . 3 8 3 Average Slot Usage (%) 88 | . 95 100 100 100 98 99 99 100 100 97 68 69 Engine 2 | . 14 14 14 14 2 . . . . . . . Core 5 | . . . . . 6 9 9 9 9 6 6 5 Treads 14 | . 14 14 14 14 17 17 24 36 36 24 2 . Wheel 6 | . 14 14 14 14 18 18 10 . . . . . Device 6 | . 1 14 11 . 8 3 . . . 12 7 5 Storage 29 | . 14 14 16 28 26 32 36 36 36 32 33 33 Hackware 1 | . . . . . . . . . . . . 13 Protection 1 | . 7 . . . . . . . . 6 4 . Energy Gun 4 | . 14 9 14 14 8 2 4 5 4 3 1 . Ballistic Gun 9 | . 14 11 14 14 8 9 12 9 9 5 8 10 Launcher 1 | . . 6 . . . 2 . . 4 . 1 . Naked Turns . | . . . . . . . . . . . . . Heaviest Build 86 | 10 11 12 22 22 41 45 45 45 44 86 86 82 Greatest Support 80 | 16 16 16 16 16 40 40 80 80 80 80 40 3 Greatest Overweight (x) 27 | . . . 1 1 1 1 2 . . 2 27 27 Average Overweight (x) 1 | . . . . 1 . . . . . . 12 25 Largest Inventory Capacity 28 | 6 6 6 12 12 20 20 20 20 20 28 28 28 Average Capacity 20 | 6 6 6 6 12 15 18 20 20 20 25 28 28 Most Carried 24 | 6 6 6 10 10 16 20 20 19 19 23 24 18 Average Carried 16 | 5 5 5 6 10 11 16 19 19 19 20 19 17 Final Capacity 28 | 6 6 6 12 12 16 20 20 20 20 28 28 28 Final Carried 23 | 4 6 6 10 10 16 20 19 19 19 23 19 16 Class Distribution -------------------- 62% | Hauler-Mutant 30% | Mutant 7% | Scavenger-Mutant Dominant Class ---------------- Mutant | -10/Materials Mutant | -10/Mines Mutant | -10/Exiles Mutant | -9/Mines Mutant | -8/Materials Hauler-Mutant | -8/Garrison Hauler-Mutant | -8/Storage Scavenger-Mutant | -8/Garrison Hauler-Mutant | -8/Recycling Hauler-Mutant | -6/Factory Hauler-Mutant | -6/Garrison Hauler-Mutant | -6/Factory Resources | -11 -10 -10 -10 -9 -8 -8 -8 -8 -8 -6 -6 -6 ----------- Run | Scr Mat Min Exi Min Mat Gar Sto Gar Rec Fac Gar Fac Matter Collected 1417 | 200 30 39 . . 155 69 508 36 80 70 230 . Remotely . | . . . . . . . . . . . . . Salvage Created 1608 | . . 101 . . 213 37 528 87 54 86 457 45 Parts 94 | . . 6 . . 4 9 33 5 7 7 20 3 Haulers Intercepted 1 | . . . . . . . 1 . . . . . Recyclers Shooed . | . . . . . . . . . . . . . Parts Field Recycled . | . . . . . . . . . . . . . Retrieved Matter . | . . . . . . . . . . . . . Parts Self-Destructed . | . . . . . . . . . . . . . Prevented . | . . . . . . . . . . . . . Kills | -11 -10 -10 -10 -9 -8 -8 -8 -8 -8 -6 -6 -6 ------- Run | Scr Mat Min Exi Min Mat Gar Sto Gar Rec Fac Gar Fac Combat Hostiles Destroyed 45 | . . 3 . . 4 10 8 2 4 1 12 1 Guns 21 | . . . . . 4 . 8 2 1 1 4 1 AOE 24 | . . 3 . . . 10 . . 3 . 8 . Classes Destroyed 14 | . . 2 . . 2 . 2 . 2 2 3 1 Builder 1 | . . . . . . . . . 1 . . . Tunneler 1 | . . . . . . . . . . 1 . . Hauler 1 | . . . . . . . 1 . . . . . Recycler 2 | . . 1 . . . . 1 . . . . . Operator 1 | . . . . . . . . . . 1 . . Drone 4 | . . . . . . . . . 4 . . . Swarmer 17 | . . 3 . . . 10 . . . . 4 . Grunt 6 | . . . . . 3 . . 2 . . 1 . Brawler 1 | . . . . . . . . . . . 1 . Sentry 9 | . . . . . 1 . 7 . . . 1 . Specialist 1 | . . . . . . . . . . . 1 . Hunter 5 | . . . . . . . 1 . . 1 3 . Programmer 1 | . . . . . . . . . . . . 1 Behemoth 1 | . . . . . . . . . . . 1 . Best Kill Streak 7 | . . 3 . . 3 7 2 2 3 2 6 1 Combat Bots Only 7 | . . 3 . . 3 7 1 2 2 1 6 1 Max Kills in Single Turn 3 | . . 1 . . 1 3 1 1 2 2 2 1 Gunslinging . | . . . . . . . . . . . . . Exploded 3 | . . 1 . . . 3 . . 1 . 2 . Melee . | . . . . . . . . . . . . . Uniques/NPCs Destroyed . | . . . . . . . . . . . . . Combat | -11 -10 -10 -10 -9 -8 -8 -8 -8 -8 -6 -6 -6 -------- Run | Scr Mat Min Exi Min Mat Gar Sto Gar Rec Fac Gar Fac Damage Taken 4676 | . . 68 . 205 270 191 684 98 . 440 1755 965 Core 1068 | . . 22 . 38 10 6 124 16 . 117 357 378 Absorbed by Shields 37 | . . . . . . 37 . . . . . . Core Remaining (%) 82 | 100 . . . 76 . . . . 71 . . . Volleys Fired 151 | . 3 5 . . 27 8 36 4 10 6 49 3 Largest 2 | . 2 2 . . 2 1 2 2 2 2 2 2 Hottest 143 | . 70 100 . . 73 30 81 81 81 105 143 51 Shots Fired 253 | . 6 6 . . 45 8 72 8 15 10 79 4 Gun 223 | . 6 2 . . 45 . 72 8 10 10 66 4 Cannon . | . . . . . . . . . . . . . Launcher 30 | . . 4 . . . 8 . . 5 . 13 . Special . | . . . . . . . . . . . . . Kinetic 124 | . 3 . . . 18 . 47 4 5 6 37 4 Thermal 99 | . 3 2 . . 27 . 25 4 5 4 29 . Explosive 30 | . . 4 . . . 8 . . 5 . 13 . Electromagnetic . | . . . . . . . . . . . . . Robot Hit Streak 38 | . 4 5 . . 17 1 38 5 3 6 9 2 Robot Miss Streak 4 | . 2 1 . . 2 2 2 2 3 4 2 2 Penetration Max . | . . . . . . . . . . . . . Secondary Targets 1 | . . . . . . . . 1 . . . . Max Gunslinging Chain 1 | . . . . . . . . 1 . . . . Shots Hit Robots 181 | . 4 1 . . 34 1 64 6 5 7 57 2 Core Hits 98 | . 1 5 . . 14 10 21 5 6 5 29 2 Critical Hits 3 | . . . . . . . . . . . 3 . Critical Kills 1 | . . . . . . . . . . . 1 . Critical Parts Destroyed 1 | . . . . . . . . . . . 1 . Melee Attacks 12 | . . . . . 2 3 5 . . 2 . . Impact 10 | . . . . . 2 3 5 . . . . . Slashing 2 | . . . . . . . . . . 2 . . Piercing . | . . . . . . . . . . . . . Sneak Attacks . | . . . . . . . . . . . . . Combat Hostiles . | . . . . . . . . . . . . . Follow-up Attacks . | . . . . . . . . . . . . . Damage Inflicted 4982 | . 46 224 . . 395 797 969 110 347 282 1770 42 Guns 2682 | . 46 26 . . 395 . 969 110 92 122 880 42 Cannons . | . . . . . . . . . . . . . Explosions 2300 | . . 198 . . . 797 . . 255 160 890 . Melee . | . . . . . . . . . . . . . Ramming . | . . . . . . . . . . . . . Kinetic 1436 | . 22 . . . 120 . 619 53 52 25 503 42 Thermal 1246 | . 24 26 . . 275 . 350 57 40 97 377 . Explosive 2300 | . . 198 . . . 797 . . 255 160 890 . Electromagnetic . | . . . . . . . . . . . . . Impact . | . . . . . . . . . . . . . Slashing . | . . . . . . . . . . . . . Piercing . | . . . . . . . . . . . . . Highest Corruption 2 | . . . . . . . . . . . . 2 Average Corruption 1 | . . . . . . . . . . . . 1 Corruption Purged . | . . . . . . . . . . . . . Overload Shots . | . . . . . . . . . . . . . Overflow Damage 130 | . . . . . . 16 . . 28 73 13 . Projectiles . | . . . . . . . . . . . . . Explosions 130 | . . . . . . 16 . . 28 73 13 . Melee . | . . . . . . . . . . . . . Knockbacks . | . . . . . . . . . . . . . Impact . | . . . . . . . . . . . . . Kinetic . | . . . . . . . . . . . . . Secondary . | . . . . . . . . . . . . . Self-Inflicted Damage 601 | . . 13 . . . 138 . . . 400 50 . Shots 13 | . . 1 . . . 5 . . . 5 2 . Rammed . | . . . . . . . . . . . . . Targets Rammed . | . . . . . . . . . . . . . Kicked . | . . . . . . . . . . . . . Crushed . | . . . . . . . . . . . . . Highest Temperature 259 | . 40 39 . . 152 . 102 81 9 36 259 . Average Temperature 58 | . 21 24 . . 59 . 29 44 6 16 109 . Received Heat Transfer 897 | . . . . 12 162 . 198 54 . . 237 234 Siege Activations . | . . . . . . . . . . . . . Robots Corrupted . | . . . . . . . . . . . . . Combat Hostiles . | . . . . . . . . . . . . . Parts Fried . | . . . . . . . . . . . . . Impact Corruptions . | . . . . . . . . . . . . . Robots Melted . | . . . . . . . . . . . . . Combat Hostiles . | . . . . . . . . . . . . . Parts Melted 5 | . . . . . 1 . 3 . . . 1 . Heat Transferred 2923 | . 74 74 . . 814 . 888 148 111 148 666 . Parts Sabotaged . | . . . . . . . . . . . . . Parts Stolen . | . . . . . . . . . . . . . Parts Stripped . | . . . . . . . . . . . . . Power Chain Reactions . | . . . . . . . . . . . . . Missiles Intercepted . | . . . . . . . . . . . . . Alert | -11 -10 -10 -10 -9 -8 -8 -8 -8 -8 -6 -6 -6 ------- Run | Scr Mat Min Exi Min Mat Gar Sto Gar Rec Fac Gar Fac Peak Influence 1405 | . 26 107 . 15 125 343 456 336 281 1405 1248 655 Initial 983 | . . 9 . . 5 . 167 296 151 933 983 655 Average 538 | . 16 13 . 14 68 198 282 316 216 1005 1171 590 Maximum Alert Level 4 | . . . . . . 1 2 1 1 4 4 2 Low Security (%) 31 | 100 100 100 . 100 100 46 19 . 37 . . . Level 1 22 | . . . . . . 53 69 100 62 . . . Level 2 12 | . . . . . . . 10 . . . . 100 Level 3 11 | . . . . . . . . . . 87 21 . Level 4 21 | . . . . . . . . . . 12 78 . Level 5 . | . . . . . . . . . . . . . High Security . | . . . . . . . . . . . . . Max Security . | . . . . . . . . . . . . . Squads Dispatched 6 | . . . . . 2 . . . . 2 . 2 Investigation . | . . . . . . . . . . . . . Extermination 2 | . . . . . . . . . . . . 2 Reinforcement 2 | . . . . . 1 . . . . 1 . . Assault 1 | . . . . . . . . . . 1 . . Garrison 1 | . . . . . 1 . . . . . . . Intercept . | . . . . . . . . . . . . . Construction Impeded . | . . . . . . . . . . . . . Haulers Reinforced . | . . . . . . . . . . . . . Stealth | -11 -10 -10 -10 -9 -8 -8 -8 -8 -8 -6 -6 -6 --------- Run | Scr Mat Min Exi Min Mat Gar Sto Gar Rec Fac Gar Fac Distress Signals 2 | . . . . . 2 . . . . . . . Communications Jammed . | . . . . . . . . . . . . . Distress Signals . | . . . . . . . . . . . . . Times Spotted 98 | . 1 4 . 6 12 11 17 2 23 5 14 3 Peak Tracking Total 6 | . 1 3 . 6 4 5 3 2 4 1 5 2 Tactical Retreats 9 | . . . . . . . 6 . . . 3 . Traps | -11 -10 -10 -10 -9 -8 -8 -8 -8 -8 -6 -6 -6 ------- Run | Scr Mat Min Exi Min Mat Gar Sto Gar Rec Fac Gar Fac Traps Triggered 6 | . . . . . . 3 . . . . 3 . Indirectly . | . . . . . . . . . . . . . Trap Hack Attempts . | . . . . . . . . . . . . . Triggered . | . . . . . . . . . . . . . Disarmed . | . . . . . . . . . . . . . Reprogrammed . | . . . . . . . . . . . . . Reused . | . . . . . . . . . . . . . Traps Extracted . | . . . . . . . . . . . . . Installed . | . . . . . . . . . . . . . Triggered . | . . . . . . . . . . . . . Machines | -11 -10 -10 -10 -9 -8 -8 -8 -8 -8 -6 -6 -6 ---------- Run | Scr Mat Min Exi Min Mat Gar Sto Gar Rec Fac Gar Fac Machines Disabled 27 | . . 1 . . . 2 . . . 24 . . Max in Single Turn 6 | . . 1 . . . 1 . . . 6 . . Garrison Relay 2 | . . . . . . 2 . . . . . . Machines Sabotaged . | . . . . . . . . . . . . . Garrisons Compromised . | . . . . . . . . . . . . . Overloaded Fab Kills . | . . . . . . . . . . . . . Fab Network Shutdowns . | . . . . . . . . . . . . . Hacking | -11 -10 -10 -10 -9 -8 -8 -8 -8 -8 -6 -6 -6 --------- Run | Scr Mat Min Exi Min Mat Gar Sto Gar Rec Fac Gar Fac Machines Accessed 18 | . 3 1 . . 2 . 8 . 2 2 . . Terminals 13 | . 3 . . . 1 . 6 . 2 1 . . Fabricators . | . . . . . . . . . . . . . Repair Stations 1 | . . . . . . . 1 . . . . . Recycling Units . | . . . . . . . . . . . . . Scanalyzers . | . . . . . . . . . . . . . Garrison Access 3 | . . . . . 1 . 1 . . 1 . . Total Hacks 41 | . 8 1 . . 3 . 21 . 5 3 . . Successful 18 | . 3 1 . . 2 . 9 . 1 2 . . Failed 23 | . 5 . . . 1 . 12 . 4 1 . . Catastrophic 3 | . 1 . . . . . 1 . 1 . . . Database Lockouts . | . . . . . . . . . . . . . Manual 17 | . 3 . . . 2 . 10 . . 2 . . Terminals 35 | . 8 . . . 2 . 18 . 5 2 . . Fabricators . | . . . . . . . . . . . . . Repair Stations 1 | . . . . . . . 1 . . . . . Recycling Units . | . . . . . . . . . . . . . Scanalyzers . | . . . . . . . . . . . . . Garrison Access 4 | . . . . . 1 . 2 . . 1 . . Terminal Hacks 13 | . 3 1 . . 1 . 7 . 1 . . . Part Schematic 3 | . 1 . . . . . 1 . 1 . . . Robot Schematic 2 | . . . . . . . 2 . . . . . Prototype ID Bank 1 | . 1 . . . . . . . . . . . Open Door 3 | . . 1 . . . . 2 . . . . . Branch Access Points 1 | . . . . . . . 1 . . . . . Locate Traps 2 | . 1 . . . . . 1 . . . . . Registered Components 1 | . . . . . 1 . . . . . . . Fabricator Hacks . | . . . . . . . . . . . . . Repair Station Hacks . | . . . . . . . . . . . . . Recycling Unit Hacks . | . . . . . . . . . . . . . Scanalyzer . | . . . . . . . . . . . . . Garrison Access Hacks 4 | . . . . . 1 . 2 . . 1 . . Unlock Access 3 | . . . . . 1 . 1 . . 1 . . Coupler Status 1 | . . . . . . . 1 . . . . . Unauthorized Hacks 1 | . . . . . . . . . . 1 . . Terminals 1 | . . . . . . . . . . 1 . . Assimilate 1 | . . . . . . . . . . 1 . . Fabricators . | . . . . . . . . . . . . . Repair Stations . | . . . . . . . . . . . . . Recycling Units . | . . . . . . . . . . . . . Scanalyzers . | . . . . . . . . . . . . . Garrison Access . | . . . . . . . . . . . . . Data Cores Recovered . | . . . . . . . . . . . . . Used . | . . . . . . . . . . . . . Hacking Detections 15 | . 3 . . . 2 . 6 . 2 2 . . Full Trace Events . | . . . . . . . . . . . . . Feedback Events . | . . . . . . . . . . . . . Feedback Blocked . | . . . . . . . . . . . . . Robot Schematics Acquired 2 | . . . . . . . 2 . . . . . Robots Built . | . . . . . . . . . . . . . Matter . | . . . . . . . . . . . . . Time . | . . . . . . . . . . . . . Total Robot Build Rating . | . . . . . . . . . . . . . Part Schematics Acquired 3 | . 1 . . . . . 1 . 1 . . . Parts Built . | . . . . . . . . . . . . . Matter . | . . . . . . . . . . . . . Time . | . . . . . . . . . . . . . Total Part Build Rating . | . . . . . . . . . . . . . Parts Repaired . | . . . . . . . . . . . . . Time . | . . . . . . . . . . . . . Parts Recycled . | . . . . . . . . . . . . . Recycled Matter . | . . . . . . . . . . . . . Retrieved Matter . | . . . . . . . . . . . . . Retrieved Components . | . . . . . . . . . . . . . Parts Scanalyzed . | . . . . . . . . . . . . . Part Schematics Acquired . | . . . . . . . . . . . . . Parts Damaged . | . . . . . . . . . . . . . Bothacking | -11 -10 -10 -10 -9 -8 -8 -8 -8 -8 -6 -6 -6 ------------ Run | Scr Mat Min Exi Min Mat Gar Sto Gar Rec Fac Gar Fac Used RIF Installer 3 | . . . . . . 1 . 1 . . 1 . Signal Jammer 1 | . . . . . . . . 1 . . . . Watcher Feeds 1 | . . . . . . . . . . . 1 . Robots Hacked . | . . . . . . . . . . . . . Non-combat . | . . . . . . . . . . . . . Combat . | . . . . . . . . . . . . . Robot Hacks Applied . | . . . . . . . . . . . . . Relay Couplers Released 8 | . . . . . . 8 . . . . . . Machine Destruction 8 | . . . . . . 8 . . . . . . Attached 2 | . . . . . . . . . . . . 2 Robots Rewired . | . . . . . . . . . . . . . Allies Hacked . | . . . . . . . . . . . . . Hacks Repelled . | . . . . . . . . . . . . . Allies | -11 -10 -10 -10 -9 -8 -8 -8 -8 -8 -6 -6 -6 -------- Run | Scr Mat Min Exi Min Mat Gar Sto Gar Rec Fac Gar Fac Total Allies 2 | . . 2 . . . . . . . . . . Largest Group 2 | . . 2 2 . . . . . . . . . Highest-Rated Group 46 | . . 46 46 . . . . . . . . . Highest-Rated Ally 31 | . . 31 31 . . . . . . . . . Total Orders 1 | . . . . . 1 . . . . . . . RETURN 1 | . . . . . 1 . . . . . . . Ally Attacks 5 | . . 2 . . 3 . . . . . . . Total Damage 38 | . . 20 . . 18 . . . . . . . Kills . | . . . . . . . . . . . . . Allies Corrupted . | . . . . . . . . . . . . . Allies Melted . | . . . . . . . . . . . . . Intel | -11 -10 -10 -10 -9 -8 -8 -8 -8 -8 -6 -6 -6 ------- Run | Scr Mat Min Exi Min Mat Gar Sto Gar Rec Fac Gar Fac Robot Analysis Total . | . . . . . . . . . . . . . Derelict Logs Recovered 2 | . . 2 . . . . . . . . . . Drone Launches 2 | . . . . . 2 . . . . . . . Drone Recoveries 2 | . . . . . 2 . . . . . . . Exploration | -11 -10 -10 -10 -9 -8 -8 -8 -8 -8 -6 -6 -6 ------------- Run | Scr Mat Min Exi Min Mat Gar Sto Gar Rec Fac Gar Fac Turns Passed 5778 | 5 90 565 412 46 449 442 742 201 425 381 1407 613 Spaces Moved 2692 | 1 74 467 401 42 205 331 399 111 250 192 174 45 Core 122 | . . . . . . . . . . . 77 45 Treads 1055 | . . . . . 150 38 217 111 250 192 97 . Legs . | . . . . . . . . . . . . . Wheels 1515 | 1 74 467 401 42 55 293 182 . . . . . Hover . | . . . . . . . . . . . . . Flight . | . . . . . . . . . . . . . Fastest Speed 90 | 100 100 100 100 110 90 110 110 160 160 160 200 1100 Average Speed 185 | 100 100 100 101 110 145 115 138 160 160 168 721 1348 Slowest Speed 1400 | 100 100 100 110 110 180 180 200 160 160 200 1400 1400 Overloaded Moves . | . . . . . . . . . . . . . Propulsion Burnouts . | . . . . . . . . . . . . . Robots Hopped . | . . . . . . . . . . . . . Cave-ins Triggered . | . . . . . . . . . . . . . Exploration Rate (%) 32 | 2 13 81 66 17 17 36 56 31 58 5 40 1 Regions Visited 12 Branch Regions 5 Pre-discovered Areas . | . . . . . . . . . . . . . Known Exits Taken 3 | . . . . . 1 . 1 . . 1 . . Unknown Exits Taken 6 | 1 1 1 1 1 . . . . 1 . . . Scrap Searched 1 | . . 1 . . . . . . . . . . Spaces Dug 26 | . . 17 . . 2 . 5 . . 2 . . Terrain Destroyed 201 | . . 30 . . 2 48 5 . 31 40 45 . Melee 9 | . . . . . 2 . 5 . . 2 . . Projectile 2 | . . . . . . . . . . . 2 . AOE 190 | . . 30 . . . 48 . . 31 38 43 . Terrain Rammed . | . . . . . . . . . . . . . Walls Destroyed . | . . . . . . . . . . . . . Machines Disabled . | . . . . . . . . . . . . . Actions | -11 -10 -10 -10 -9 -8 -8 -8 -8 -8 -6 -6 -6 --------- Run | Scr Mat Min Exi Min Mat Gar Sto Gar Rec Fac Gar Fac Total 3213 | 4 85 556 407 41 308 372 508 126 260 234 255 57 Wait 187 | . . 72 . . 40 2 41 11 . 15 6 . Move 2683 | . 73 466 400 41 205 330 399 110 249 192 173 45 Hop . | . . . . . . . . . . . . . Pick Up 53 | . 4 2 4 . 14 9 4 . . 9 4 3 Fast Attach 7 | . 2 1 . . 1 . 3 . . . . . Attach 25 | . . . . . 6 1 3 . . 4 7 4 Detach . | . . . . . . . . . . . . . Swap 54 | 2 . 7 2 . 8 10 9 1 1 5 9 . Drop 30 | 2 3 3 1 . 5 4 8 . . 1 1 2 Fire 151 | . 3 5 . . 27 8 36 4 10 6 49 3 Melee 12 | . . . . . 2 3 5 . . 2 . . Ram . | . . . . . . . . . . . . . Kick . | . . . . . . . . . . . . . Crush . | . . . . . . . . . . . . . Escape Stasis 11 | . . . . . . 5 . . . . 6 . Rewire . | . . . . . . . . . . . . . Trap . | . . . . . . . . . . . . . Miscellaneous . | . . . . . . . . . . . . . Route ------- -11/Scrapyard -10/Materials -10/Mines (discovered 3 exits: [*Mat x2] / [*Exi]) -10/Exiles -9/Mines -8/Materials -8/Garrison -8/Storage (discovered 3 exits: [*Fac] / *Rec / Gar) -8/Garrison -8/Recycling -6/Factory -6/Garrison -6/Factory History --------- Turn | Location | Event 6 | -11/Scrapyard | Discovered new exit (range 0) 6 | -11/Scrapyard | Entered Materials 21 | -10/Materials | Discovered new exit (range 16) 96 | -10/Materials | Entered Mines 138 | -10/Mines | Discovered new exit (range 11) 181 | -10/Mines | Found the Drone Emporium 198 | -10/Mines | Found Prototype Device 199 | -10/Mines | Identified Thief Drone Bay 268 | -10/Mines | Learned Materials terminal intel 310 | -10/Mines | Build established: Mutant 327 | -10/Mines | Learned Materials terminal intel 465 | -10/Mines | Discovered new exit (range 15) 642 | -10/Mines | Deemed a non-threat by the Exiles lab entrance 643 | -10/Mines | Discovered new exit (range 5) 661 | -10/Mines | Entered Exiles 661 | -10/Exiles | Accompanied by 2 allies 685 | -10/Exiles | Met 8R-AWN 691 | -10/Exiles | Led the pair of lost Derelicts to a safe place 702 | -10/Exiles | Met EX-HEX 743 | -10/Exiles | Met EX-DEC 799 | -10/Exiles | Visited The Gauntlet 923 | -10/Exiles | Discovered new exit (range 14) 1073 | -10/Exiles | Entered Mines 1105 | -9/Mines | Discovered new exit (range 13) 1119 | -9/Mines | Entered Materials 1119 | -8/Materials | Evolved 4 slots: Propulsion x2, Utility x2 1120 | -8/Materials | Loaded intel: 12 terminal locations 1223 | -8/Materials | Garrison activated, responded to threat 1568 | -8/Materials | Identified exit to Garrison 1568 | -8/Materials | Entered Garrison 1640 | -8/Garrison | Triggered checkpoint 1646 | -8/Garrison | Triggered checkpoint 1675 | -8/Garrison | Destroyed 7 combat bots 1708 | -8/Garrison | Discovered new exit (range 9) 1724 | -8/Garrison | Installed Relay Interface Framework 1758 | -8/Garrison | Triggered checkpoint 1774 | -8/Garrison | Garrison Relay disabled 1878 | -8/Garrison | Triggered checkpoint 1904 | -8/Garrison | Garrison Relay disabled 2010 | -8/Garrison | Entered Storage 2070 | -8/Storage | Build established: Hauler-Mutant 2288 | -8/Storage | Used back door to open Recycling access 2288 | -8/Storage | Discovered new exit (range 5) 2579 | -8/Storage | Identified exit to Recycling 2723 | -8/Storage | Discovered new exit (range 16) 2752 | -8/Storage | Identified exit to Garrison 2752 | -8/Storage | Entered Garrison 2818 | -8/Garrison | Triggered checkpoint 2924 | -8/Garrison | Discovered exit to Recycling (range 10) 2947 | -8/Garrison | Expanded RIF knowledge: Signal Jamming 2953 | -8/Garrison | Entered Recycling 2975 | -8/Recycling | Spotter reported a threat 2979 | -8/Recycling | Spotter reported a threat 2985 | -8/Recycling | Spotter reported a threat 2997 | -8/Recycling | Spotter reported a threat 3026 | -8/Recycling | Spotter reported a threat 3028 | -8/Recycling | Spotter reported a threat 3032 | -8/Recycling | Spotter reported a threat 3043 | -8/Recycling | Spotter reported a threat 3063 | -8/Recycling | Spotter reported a threat 3079 | -8/Recycling | Spotter reported a threat 3093 | -8/Recycling | Spotter reported a threat 3093 | -8/Recycling | Spotter reported a threat 3127 | -8/Recycling | Build established: Scavenger-Mutant 3132 | -8/Recycling | Spotter reported a threat 3146 | -8/Recycling | Spotter reported a threat 3154 | -8/Recycling | Spotter reported a threat 3190 | -8/Recycling | Spotter reported a threat 3199 | -8/Recycling | Spotter reported a threat 3202 | -8/Recycling | Spotter reported a threat 3205 | -8/Recycling | Spotter reported a threat 3216 | -8/Recycling | Spotter reported a threat 3228 | -8/Recycling | Spotter reported a threat 3252 | -8/Recycling | Spotter reported a threat 3277 | -8/Recycling | Spotter reported a threat 3306 | -8/Recycling | Spotter reported a threat 3343 | -8/Recycling | Spotter reported a threat 3350 | -8/Recycling | Discovered new exit (range 15) 3359 | -8/Recycling | Spotter reported a threat 3378 | -8/Recycling | Entered Factory 3378 | -6/Factory | Evolved 4 slots: Utility x4 3450 | -6/Factory | Build established: Hauler-Mutant 3728 | -6/Factory | First assault squad dispatched 3745 | -6/Factory | Lost 3 parts (2n1w) 3759 | -6/Factory | Identified exit to Garrison 3759 | -6/Factory | Entered Garrison 3876 | -6/Garrison | Spotted B-75 Beast 3948 | -6/Garrison | Triggered checkpoint 4051 | -6/Garrison | Destroyed B-75 Beast 4070 | -6/Garrison | Lost 8 parts (3n2u3w) 4194 | -6/Garrison | Triggered checkpoint 4507 | -6/Garrison | Core integrity fell below 50% 4844 | -6/Garrison | Discovered new exit (range 15) 5110 | -6/Garrison | Expanded RIF knowledge: Patrol Navigation 5166 | -6/Garrison | Entered Factory 5758 | -6/Factory | Lost 3 parts (1p1u1w) 5758 | -6/Factory | Core integrity fell below 20% 5779 | -6/Factory | Destroyed by Y-54 Guardian with Gatling Laser Last Messages --------------- Acquired 64 matter. The unstable cave ceiling collapses. Initiating installation procedure... Expanded RIF knowledge: Patrol Navigation. Attempting to access garrison exit controls... RIF authorized. LOCATION=UNKNOWN GOAL=ESCAPE Dropped Great Axe. Acquired Falx. Acquired Imp. Salvage Targeting Computer. ALERT: Rogue bot located, Programmers report to Factory Zone 6K. Detecting nearby Garrison Access. Gauss Rifle destroyed. P-60 Hacker destroyed. K-01 Serf collects debris. ALERT: Rogue bot located, Programmers report to Factory Zone 1L. Fission Core destroyed. Hvy. Assault Rifle destroyed. Transmission Jammer destroyed. Map ----- +----------------------------------------------------+ | ?????????????????????????????????????????????????? | | ?????????????????????????????????????????????????? | | ?????????????????????????????????????????????????? | | ?????????????????????????????????????????????????? | | ?????????????????????????????????????????????????? | | ?????????????????????????????????????????????????? | | ?????????????????????????????????????????????????? | | ?????????????????????????????????????????????????? | | ?????????????????????????????????????????????????? | | ?????????????????????????????????????????????????? | | ?????????????????????????????????????????????????? | | ?????????????????????????????????????????????????? | | ?????????????????????????????????????????????????? | | ?????????????????????????????????????????????????? | | ?????????????????????????????????????????????????? | | ?????????????????????????????????????????????????? | | ????????????????????????##???????????????????????? | | ?????????????????????#### ######?????????????????? | | ?????????????????????# #?????????????????? | | ?????????????????????# " !!!#?????????????????? | | ?????????????????????# "G" !! #?????????????????? | | ?????????????????????# " " !! #?????????????????? | | ?????????????????????# #?????????????????? | | ?????????????????????# #?????????????????? | | ###########??????????# ! ! #?????????????????? | | #??????????# @ #?????#???????????? | | ################Y##### #???????????? | | # p !%| ?????? | | """ # ! ?????? | | """ # ^^ ?????? | | ! """ + ^ ??????? | | !! / # ??????? | | !/// """ # #################+########???????? | | """ # #????????????????????????????????? | | """ #######????????????????????????????????? | | #??????????????????????????????????????? | | #??????????????????????????????????????? | | ###########??????????????????????????????????????? | | ?????????????????????????????????????????????????? | | ?????????????????????????????????????????????????? | | ?????????????????????????????????????????????????? | | ?????????????????????????????????????????????????? | | ?????????????????????????????????????????????????? | | ?????????????????????????????????????????????????? | | ?????????????????????????????????????????????????? | | ?????????????????????????????????????????????????? | | ?????????????????????????????????????????????????? | | ?????????????????????????????????????????????????? | | ?????????????????????????????????????????????????? | | ?????????????????????????????????????????????????? | +----------------------------------------------------+ Best States ------------- Heat Dissipation 37 Energy Generation 18 Energy Capacity 310 Matter Stores 300 Matter Capacity 300 Sight Range 16 Robot Scan Range 16 Terrain Scan Density 10 Jamming Range 8 Utility Shielding 66 Weapon Shielding 33 Phase Shifting 5 Evasion (%) 45 Recoil Reduction 4 Relay Coupler Types 45 Relay Coupler Value 2 Item Schematics ----------------- Lrg. Storage Unit | -10/Materials | Hacked Com. Wheel | -8/Storage | Hacked Phase Shifter | -8/Recycling | Hacked Robot Schematics ------------------ L-31 Rogue | -8/Storage | Hacked K-01 Serf | -8/Storage | Hacked Fabricated ------------ Nothing Alien Tech Used ----------------- None Achievements -------------- None Challenges ------------ None Game ------ Seed DecoderProtonThruster Manual? 0 Play Time 00:30:51 Cumulative 156.4 hours Start 2020.11.22 @ 20:17:14 End 2020.11.22 @ 20:47:12 Sessions 1 Manual Loads 0 Difficulty Rogue Special Mode Halloween2020/ForbiddenLore Game No. 182 Rogue 182 Adventurer 0 Explorer 0 Win Type - Total 2 Types 2/0/0/0/0/0/0/0/0 Lore% 54 Gallery% 74 Achievement% 55 Wizard Run 0 Options --------- ASCII 0 Keyboard 0 Movement Mouse Keybinds 1 Fullscreen 2 Font 24/Smallcaps Map View 76x50 Tactical HUD 1 Map Filters NONE Filters NONE Steam 1 RUN: b7f82386-9ec9-4c01-8d04-d858c1e0be47